bitfinex/quotes_ETHUSD_20250904
["timestamp","ask_amount","ask_price","bid_price","bid_amount"]
[1757028061661,0.1152,4340.2,4339.9,1.2359]
[1757028061856,0.001,4340.1,4339.9,0.2954]
[1757028062055,2.30509437,4340.1,4340.0,0.9405]
[1757028062274,2.30509437,4340.1,4340.0,1.2359]
[1757028062479,2.30509437,4340.1,4340.0,0.2954]
[1757028064284,2.30420055,4339.9,4339.8,1e-08]
[1757028064663,2.30420055,4339.9,4339.8,0.29540001]
[1757028067188,0.001,4340.1,4339.8,0.76560001]
[1757028067385,0.001,4340.1,4339.9,0.9405]
[1757028067760,2.30414746,4340.0,4339.9,0.4703]
[1757028067958,2.30510045,4340.1,4339.9,0.7657]
[1757028068164,2.30510045,4340.1,4339.9,0.2954]
[1757028068379,0.001,4340.1,4340.0,0.9405]
[1757028068586,0.001,4340.1,4340.0,1.2359]
[1757028068901,0.001,4340.1,4340.0,4.76659]
[1757028069071,0.001,4340.1,4340.0,15.18704479]
[1757028070975,0.001,4340.1,4340.0,15.07184479]
[1757028071178,0.001,4340.1,4340.0,15.18704479]
[1757028072580,0.001,4340.7,4340.5,2.30388204]
[1757028072890,0.001,4340.7,4340.5,12.52141287]
[1757028073086,0.001,4340.7,4340.6,2.30382896]
[1757028073301,0.001,4341.6,4340.6,2.30382896]
[1757028073302,0.001,4341.6,4341.4,2.30340443]
[1757028073468,0.001,4341.6,4341.4,4.40480443]
[1757028073670,0.001,4341.6,4341.4,8.77060443]
[1757028073870,0.001,4341.6,4341.4,10.90918454]
[1757028074379,0.001,4341.6,4341.4,11.00151307]
[1757028075803,0.001,4342.4,4341.5,2.30335137]
[1757028075981,0.001,4342.4,4341.7,5.85770733]
[1757028076182,0.001,4342.4,4341.7,12.4403526]
[1757028076381,0.001,4342.4,4341.7,15.59179386]
[1757028079907,0.001,4342.4,4341.9,2.30313917]
[1757028080100,0.001,4342.4,4342.3,8.16063435]
[1757028080300,0.001,4342.4,4342.3,14.13703435]
[1757028080500,0.001,4342.4,4342.3,15.07223435]
[1757028080816,0.001,4342.4,4342.3,16.80975877]
[1757028083126,0.001,4342.4,4342.3,9.72765144]
[1757028083330,0.001,4342.4,4342.3,10.01585144]
[1757028083511,0.001,4342.4,4342.3,10.95105144]
[1757028086034,0.001,4342.4,4342.3,13.95105144]
[1757028089210,0.001,4342.7,4342.6,8.16047525]
[1757028089441,0.001,4342.7,4342.6,13.94462036]
[1757028089642,0.001,4342.7,4342.6,15.28322036]
[1757028089858,0.025,4342.8,4342.6,15.28322036]
[1757028089859,0.001,4343.4,4342.7,3.0]
[1757028090147,0.001,4343.4,4343.3,8.27530412]
[1757028090450,0.001,4343.4,4343.3,14.13350412]
[1757028090747,0.001,4343.4,4343.3,15.48890259]
[1757028092139,0.001,4343.4,4343.3,15.77710259]
[1757028092657,0.001,4343.4,4343.3,16.26690259]
[1757028093346,0.001,4343.4,4343.3,16.71230259]
[1757028095846,0.001,4343.4,4343.3,6.04639526]
[1757028096049,0.001,4343.4,4343.3,13.84430412]
[1757028096621,0.3113,4343.4,4343.3,13.84430412]
[1757028096946,0.001,4343.4,4343.3,14.13250412]
[1757028099848,0.001,4343.4,4343.3,13.84430412]
[1757028100055,0.001,4343.4,4343.3,14.15520412]
[1757028100254,0.001,4343.4,4343.3,15.81020033]
[1757028100553,0.7695,4343.4,4343.3,5.7781962]
[1757028100722,1.2089,4343.4,4343.3,4.12319999]
[1757028100931,1.2089,4343.4,4343.3,5.6832]
[1757028101634,1.2089,4343.4,4343.3,7.98559679]
[1757028101826,0.7385,4343.4,4343.3,7.98559679]
[1757028102032,1.2089,4343.4,4343.3,5.6832]
[1757028103356,1.2089,4343.4,4343.3,1.8122]
[1757028103556,1.2089,4343.4,4343.3,5.6832]
[1757028104663,0.2991,4343.4,4343.3,5.6832]
[1757028104962,0.7385,4343.4,4343.3,5.6832]
[1757028105331,1.2089,4343.4,4343.3,5.6832]
[1757028108239,0.7385,4343.4,4343.3,5.6832]
[1757028109444,0.001,4343.4,4343.3,5.9941]
[1757028109644,0.001,4343.5,4343.4,2.30234378]
[1757028109870,0.025,4343.8,4343.7,2.30218477]
[1757028110072,0.025,4343.8,4343.7,6.48408477]
[1757028110245,0.025,4343.8,4343.7,7.40828477]
[1757028111273,0.001,4344.3,4343.8,2.30213177]
[1757028111474,0.001,4344.3,4344.2,8.15962713]
[1757028111773,0.001,4344.3,4344.2,14.03852713]
[1757028112274,0.001,4344.3,4344.2,15.05498156]
[1757028115174,0.001,4344.3,4344.2,9.94888156]
[1757028115340,0.001,4344.3,4344.2,1.697]
[1757028115341,0.2991,4344.3,4344.2,1.697]
[1757028115544,0.7385,4344.3,4344.2,5.567]
[1757028115770,1.2089,4344.3,4344.2,5.567]
[1757028116171,1.2089,4344.3,4344.2,1.697]
[1757028116371,0.7385,4344.3,4344.2,5.567]
[1757028116575,0.2991,4344.3,4344.2,1.697]
[1757028116781,0.2991,4344.3,4344.2,5.567]
[1757028117278,0.7385,4344.3,4344.2,5.567]
[1757028117447,0.7385,4344.3,4344.2,10.53267003]
[1757028117869,0.2991,4344.3,4344.2,6.66267003]
[1757028118058,0.2991,4344.3,4344.2,12.83458983]
[1757028118374,1.2089,4344.3,4344.2,10.53267003]
[1757028118967,1.2089,4344.3,4344.2,6.66267003]
[1757028119279,1.2089,4344.3,4344.2,10.53267003]
[1757028119993,1.2089,4344.3,4344.2,10.64787003]
[1757028120173,0.7385,4344.3,4344.2,12.94978983]
[1757028120353,0.2991,4344.3,4344.2,12.94978983]
[1757028120658,0.7385,4344.3,4344.2,10.64787003]
[1757028121070,1.2089,4344.3,4344.2,10.64787003]
[1757028121271,1.2089,4344.3,4344.2,1.8122]
[1757028121466,1.2089,4344.3,4344.2,5.6822]
[1757028122184,1.2089,4344.3,4344.2,1.8122]
[1757028122362,1.2089,4344.3,4344.2,5.6822]
[1757028123578,1.2089,4344.3,4344.2,1.8122]
[1757028123780,1.2089,4344.3,4344.2,5.8779]
[1757028123781,0.001,4344.3,4344.2,5.8779]
[1757028123970,0.001,4344.3,4344.2,10.3035768]
[1757028124586,0.001,4344.3,4344.2,7.542457]
[1757028124766,0.001,4344.3,4344.2,5.9931]
[1757028125398,0.001,4344.3,4344.2,8.2950198]
[1757028125993,0.001,4344.3,4344.2,5.6822]
[1757028126661,0.2991,4344.3,4344.2,5.6822]
[1757028127475,0.2991,4344.3,4344.2,1.8122]
[1757028127688,0.2991,4344.3,4344.2,5.6822]
[1757028127689,1.2089,4344.3,4344.2,5.6822]
[1757028127898,3.63175681,4344.3,4344.2,1.8122]
[1757028128199,3.63175681,4344.3,4344.2,5.567]
[1757028128374,3.51076681,4344.3,4344.2,5.567]
[1757028131604,1.2089,4344.3,4344.2,5.567]
[1757028131894,3.51076681,4344.3,4344.2,5.567]
[1757028132671,1.2089,4344.3,4344.2,5.567]
[1757028132869,3.51076681,4344.3,4344.2,5.567]
[1757028135318,3.04036681,4344.3,4344.2,5.567]
[1757028135521,0.7385,4344.3,4344.2,5.567]
[1757028135702,0.001,4344.3,4344.2,10.84877003]
[1757028135902,0.001,4344.3,4344.2,12.94853703]
[1757028136475,0.001,4344.3,4344.2,12.48173703]
[1757028138003,0.001,4344.3,4344.2,12.94853703]
[1757028138400,0.001,4344.3,4344.2,15.25045683]
[1757028140579,0.001,4344.3,4344.2,12.94853703]
[1757028140790,0.001,4344.3,4344.2,12.01763703]
[1757028141406,0.001,4344.3,4344.2,14.31955683]
[1757028141606,0.001,4344.3,4344.2,14.32863702]
[1757028141983,0.001,4344.3,4344.2,12.01763703]
[1757028143085,1.2069,4344.3,4344.2,1.8122]
[1757028143303,2.30197279,4344.1,4344.0,3.874]
[1757028143504,3.50787279,4344.1,4344.0,3.874]
[1757028147214,0.7338,4344.1,4344.0,3.874]
[1757028147427,2.60777279,4344.1,4344.0,3.874]
[1757028148125,3.03577279,4344.1,4344.0,3.874]
[1757028148717,0.3058,4344.1,4344.0,3.874]
[1757028149206,2.60777279,4344.1,4344.0,3.874]
[1757028149593,3.03577279,4344.1,4344.0,3.874]
[1757028150307,3.50787279,4344.1,4344.0,3.874]
[1757028151697,3.03577279,4344.1,4344.0,3.874]
[1757028153327,3.03577279,4344.1,4344.0,3.874]
[1757028154187,3.50787279,4344.1,4344.0,3.874]
[1757028156512,3.50787279,4344.1,4344.0,0.004]
[1757028156711,4.29987279,4344.1,4344.0,0.004]
[1757028158737,3.82777279,4344.1,4344.0,0.004]
[1757028160140,4.30857279,4344.1,4344.0,0.004]
[1757028161005,2.60777279,4344.1,4344.0,0.004]
[1757028161832,0.3058,4344.1,4344.0,0.004]
[1757028162044,2.30197279,4344.1,4344.0,0.004]
[1757028162830,0.001,4344.3,4344.0,1.2367]
[1757028163044,0.001,4344.3,4344.2,4.96567003]
[1757028163550,0.001,4344.3,4344.2,5.27497003]
[1757028163932,0.001,4344.3,4344.2,0.3093]
[1757028166723,2.30286791,4344.3,4344.2,3.869]
[1757028166949,0.3174,4344.3,4344.2,3.869]
[1757028167750,0.001,4344.3,4344.2,3.869]
[1757028170324,0.3174,4344.3,4344.2,3.869]
[1757028170736,0.001,4344.3,4344.2,3.869]
[1757028171154,0.001,4344.3,4344.2,4.1783]
[1757028171365,0.001,4344.3,4344.2,10.06737003]
[1757028171521,0.001,4344.3,4344.2,11.08602703]
[1757028171958,0.001,4344.3,4344.2,10.65182703]
[1757028172125,0.001,4344.3,4344.2,9.63317003]
[1757028172552,0.001,4344.3,4344.2,9.14397003]
[1757028172755,0.3174,4344.3,4344.2,3.869]
[1757028173361,2.61926681,4344.3,4344.2,3.869]
[1757028173928,2.61926681,4344.3,4344.0,0.004]
[1757028173929,2.30197279,4344.1,4344.0,0.004]
[1757028174336,2.61837279,4344.1,4344.0,0.004]
[1757028174953,3.05427279,4344.1,4344.0,0.004]
[1757028177371,0.7523,4344.1,4344.0,0.004]
[1757028177535,3.05427279,4344.1,4344.0,0.004]
[1757028177931,0.7523,4344.1,4344.0,0.004]
[1757028178332,3.05427279,4344.1,4344.0,0.004]
[1757028179360,0.3164,4344.1,4344.0,0.004]
[1757028179844,2.61837279,4344.1,4344.0,0.004]
[1757028180365,3.05427279,4344.1,4344.0,0.004]
[1757028180566,0.7523,4344.1,4344.0,0.004]
[1757028180870,0.3164,4344.1,4344.0,0.004]
[1757028181163,2.61837279,4344.1,4344.0,0.004]
[1757028181462,0.3164,4344.1,4344.0,0.004]
[1757028181864,2.30192286,4344.2,4344.0,0.004]
[1757028182532,0.3164,4344.1,4344.0,0.004]
[1757028182950,2.61837279,4344.1,4344.0,0.004]
[1757028184369,0.3164,4344.1,4344.0,0.004]
[1757028184663,2.61837279,4344.1,4344.0,0.004]
[1757028185160,0.3164,4344.1,4344.0,0.004]
[1757028185361,2.61837279,4344.1,4344.0,0.004]
[1757028186566,0.3164,4344.1,4344.0,0.004]
[1757028186770,2.41807318,4344.3,4344.0,0.3133]
[1757028187881,0.001,4344.3,4344.1,0.9234]
[1757028188033,0.001,4344.3,4344.2,1.3479]
[1757028190174,0.001,4344.3,4344.2,2.95271919]
[1757028190376,0.001,4344.3,4344.2,5.3468198]
[1757028190562,0.001,4344.3,4344.2,7.12668344]
[1757028190985,0.001,4344.3,4344.2,8.69276364]
[1757028191551,0.001,4344.3,4344.2,4.82756364]
[1757028191741,0.001,4344.3,4344.2,8.25856364]
[1757028193274,0.001,4344.3,4344.2,2.1215]
[1757028193474,0.001,4344.3,4344.2,5.88]
[1757028193676,0.001,4344.3,4344.2,6.8966]
[1757028197745,0.001,4344.3,4344.2,6.4596]
[1757028197946,0.001,4344.3,4344.2,5.9952]
[1757028198683,0.001,4344.3,4344.2,6.8966]
[1757028198979,0.001,4344.3,4344.2,8.40156479]
[1757028199344,0.001,4344.3,4344.2,7.96456479]
[1757028199766,0.001,4344.3,4344.2,7.50016479]
[1757028201704,0.001,4344.3,4344.2,7.96456479]
[1757028201877,0.001,4344.3,4344.2,8.40156479]
[1757028202473,0.001,4344.3,4344.2,7.18516479]
[1757028202801,0.3172,4344.3,4344.2,1.8122]
[1757028203000,0.3172,4344.3,4344.2,5.6792]
[1757028203223,0.001,4344.3,4344.2,5.9942]
[1757028204267,0.3172,4344.3,4344.2,5.6792]
[1757028205275,0.001,4344.3,4344.2,5.6792]
[1757028207577,0.7919,4344.3,4344.2,5.6792]
[1757028207783,1.2665,4344.3,4344.2,5.6792]
[1757028208501,0.7919,4344.3,4344.2,5.6792]
[1757028208700,1.2665,4344.3,4344.2,5.6792]
[1757028209580,0.7919,4344.3,4344.2,5.6792]
[1757028210513,0.3172,4344.3,4344.2,5.6792]
[1757028210884,0.001,4344.3,4344.2,5.6792]
[1757028211332,0.001,4344.3,4344.2,5.9942]
[1757028212697,0.001,4344.3,4344.2,6.4586]
[1757028213100,0.001,4344.3,4344.2,5.9942]
[1757028213612,0.001,4344.3,4344.2,6.8956]
[1757028213915,0.001,4344.3,4344.2,8.17026473]
[1757028214121,0.001,4344.3,4344.2,7.26886473]
[1757028214626,0.001,4344.3,4344.2,7.73326473]
[1757028214914,0.001,4344.3,4344.2,8.17026473]
[1757028216012,0.001,4344.3,4344.2,7.26886473]
[1757028216390,0.001,4344.3,4344.2,7.36114108]
[1757028217014,0.001,4344.3,4344.2,7.82554108]
[1757028217190,0.001,4344.3,4344.2,8.26254108]
[1757028218587,0.001,4344.3,4344.2,7.82554108]
[1757028219010,0.001,4344.3,4344.2,7.04614108]
[1757028219208,0.2889,4344.3,4344.2,7.04614108]
[1757028219392,0.001,4344.3,4344.2,7.04614108]
[1757028219800,0.001,4344.3,4344.2,3.17914108]
[1757028220016,0.001,4344.3,4344.2,7.04514108]
[1757028220521,0.2889,4344.3,4344.2,7.04514108]
[1757028220717,0.7617,4344.3,4344.2,1.90447635]
[1757028221023,1.2277,4344.3,4344.2,5.77047635]
[1757028221597,0.7617,4344.3,4344.2,5.77047635]
[1757028223234,0.001,4344.3,4344.2,6.07067635]
[1757028223420,0.001,4344.3,4344.2,10.52071852]
[1757028224501,0.001,4344.3,4344.2,12.83171851]
[1757028224904,0.001,4344.3,4344.2,10.52979871]
[1757028225610,0.001,4344.3,4344.2,9.31929871]
[1757028226803,0.001,4344.3,4344.2,4.21547634]
[1757028227012,0.7617,4344.3,4344.2,8.08147634]
[1757028227211,0.7617,4344.3,4344.2,7.98919999]
[1757028228499,0.2889,4344.3,4344.2,7.98919999]
[1757028230536,0.2889,4344.3,4344.2,5.6782]
[1757028232034,0.7617,4344.3,4344.2,5.6782]
[1757028232935,0.2889,4344.3,4344.2,5.6782]
[1757028236119,0.001,4344.3,4344.2,5.6782]
[1757028237141,0.2889,4344.3,4344.2,5.6782]
[1757028237636,3.52956681,4344.3,4344.2,1.697]
[1757028237939,3.52956681,4344.3,4344.2,5.562]
[1757028238124,1.2277,4344.3,4344.2,5.562]
[1757028241137,3.52956681,4344.3,4344.2,5.562]
[1757028241818,1.2277,4344.3,4344.2,5.562]
[1757028242512,0.7617,4344.3,4344.2,1.697]
[1757028242813,3.06356681,4344.3,4344.2,5.561]
[1757028243009,0.2889,4344.3,4344.2,5.561]
[1757028243409,2.59076681,4344.3,4344.2,5.561]
[1757028243841,3.06356681,4344.3,4344.2,5.561]
[1757028245116,0.2889,4344.3,4344.2,5.561]
[1757028245316,0.001,4344.3,4344.2,5.561]
[1757028245517,0.001,4344.3,4344.2,11.28187146]
[1757028245814,0.001,4344.3,4344.2,11.73837146]
[1757028246014,0.001,4344.3,4344.2,13.14281021]
[1757028246325,0.001,4344.3,4344.2,15.44473001]
[1757028246941,0.001,4344.3,4344.2,15.53698955]
[1757028247136,0.001,4344.3,4344.2,11.67298955]
[1757028247312,0.001,4344.3,4344.2,13.23506975]
[1757028247513,0.001,4344.3,4344.2,3.94769829]
[1757028247743,0.001,4344.3,4344.2,6.40725954]
[1757028247949,0.001,4344.3,4344.2,6.86375954]
[1757028248148,0.001,4344.3,4344.2,6.40725954]
[1757028248350,0.001,4344.3,4344.2,10.920331]
[1757028248918,0.001,4344.3,4344.2,5.65325954]
[1757028249117,0.3147,4344.3,4344.2,5.65325954]
[1757028249559,0.3147,4344.3,4344.2,1.697]
[1757028249735,1.2649,4344.3,4344.2,5.561]
[1757028251118,0.7707,4344.3,4344.2,5.561]
[1757028252654,0.7707,4344.3,4344.2,1.697]
[1757028252827,0.7707,4344.3,4344.2,5.561]
[1757028255961,3.07256681,4344.3,4344.2,5.561]
[1757028256269,0.7707,4344.3,4344.2,5.561]
[1757028256576,3.07256681,4344.3,4344.2,5.561]
[1757028256741,3.07256681,4344.3,4344.2,1.697]
[1757028256948,3.07256681,4344.3,4344.2,5.56]
[1757028257142,3.07256681,4344.3,4344.2,1.697]
[1757028257448,3.07256681,4344.3,4344.2,5.56]
[1757028257449,3.56676681,4344.3,4344.2,5.56]
[1757028257631,0.7707,4344.3,4344.2,5.56]
[1757028258054,0.001,4344.3,4344.2,5.56]
[1757028258256,0.001,4344.3,4344.2,5.8746]
[1757028258865,0.001,4344.3,4344.2,5.56]
[1757028259567,0.001,4344.3,4344.2,5.8746]
[1757028259768,0.001,4344.3,4344.2,10.84147146]
[1757028260468,2.30286681,4344.3,4344.2,6.97847146]
[1757028260776,3.07256681,4344.3,4344.2,5.56]
[1757028261368,3.56676681,4344.3,4344.2,5.56]
[1757028261571,0.001,4344.3,4344.2,5.56]
[1757028262071,0.3147,4344.3,4344.2,5.56]
[1757028262368,3.07256681,4344.3,4344.2,5.56]
[1757028262553,0.7707,4344.3,4344.2,5.56]
[1757028262868,0.3147,4344.3,4344.2,5.56]
[1757028263491,0.001,4344.3,4344.2,5.56]
[1757028263778,0.001,4344.3,4344.2,5.8746]
[1757028264074,0.001,4344.3,4344.2,6.3639]
[1757028264270,0.001,4344.3,4344.2,7.50908]
[1757028264781,0.001,4344.3,4344.2,8.20110636]
[1757028265142,0.001,4344.3,4344.2,10.50302616]
[1757028265646,0.001,4344.3,4344.2,8.20110636]
[1757028267282,0.001,4344.3,4344.2,7.74940636]
[1757028267464,0.001,4344.3,4344.2,8.36397782]
[1757028267653,0.001,4344.3,4344.2,5.56]
[1757028268078,0.001,4344.3,4344.2,5.9668787]
[1757028268647,0.001,4344.3,4344.2,6.4561787]
[1757028268979,0.001,4344.3,4344.2,2.5931787]
[1757028269276,0.001,4344.3,4344.2,6.9078787]
[1757028269449,0.001,4344.3,4344.2,8.32595482]
[1757028269848,0.001,4344.3,4344.2,10.62787462]
[1757028271579,0.001,4344.3,4344.2,15.59474608]
[1757028272283,0.001,4344.3,4344.2,10.62787462]
[1757028274270,0.001,4344.3,4344.2,10.74307462]
[1757028274891,0.001,4344.3,4344.2,15.70994608]
[1757028275202,0.001,4344.3,4344.2,10.74307462]
[1757028275698,0.001,4344.3,4344.2,15.70994608]
[1757028279708,0.001,4344.3,4344.2,18.02094607]
[1757028282602,0.001,4344.3,4344.2,13.05407461]
[1757028282912,0.001,4344.3,4344.2,12.60237461]
[1757028283080,0.001,4344.3,4344.2,13.04147461]
[1757028284109,0.001,4344.3,4344.2,18.00834607]
[1757028287885,0.001,4344.4,4344.3,2.30186681]
[1757028288086,0.001,4344.4,4344.3,9.53664624]
[1757028288408,0.001,4344.4,4344.3,13.04804623]
[1757028289579,0.001,4344.4,4344.3,10.73704624]
[1757028293078,0.001,4344.7,4344.6,2.30170786]
[1757028293398,0.001,4345.2,4344.9,2.30152271]
[1757028293583,0.001,4345.2,4345.1,7.55421446]
[1757028293921,0.001,4345.2,4345.1,7.66941446]
[1757028294413,0.025,4345.8,4345.7,2.30112525]
[1757028294708,0.025,4345.8,4345.7,11.24319671]
[1757028295015,0.7711,4345.8,4345.7,2.41632525]
[1757028295315,0.7711,4345.8,4345.7,3.9752]
[1757028295316,1.259,4345.8,4345.7,3.9752]
[1757028295816,1.259,4345.8,4345.7,0.1152]
[1757028296117,1.259,4345.8,4345.7,3.9752]
[1757028296484,1.259,4345.8,4345.7,0.1152]
[1757028296685,1.259,4345.8,4345.7,3.9752]
[1757028298513,1.259,4345.8,4345.7,4.86940715]
[1757028298721,0.8206,4345.8,4345.7,3.9752]
[1757028298918,0.7721,4345.8,4345.7,3.9752]
[1757028299291,1.26,4345.8,4345.7,3.9752]
[1757028302095,1.26,4345.8,4345.7,0.1152]
[1757028302295,1.26,4345.8,4345.7,3.9742]
[1757028304901,0.026,4345.8,4345.7,3.9742]
[1757028305101,0.026,4345.8,4345.7,6.27532525]
[1757028305302,0.026,4345.8,4345.7,3.9742]
[1757028305497,0.026,4345.8,4345.7,0.1152]
[1757028305498,0.3337,4345.8,4345.7,0.1152]
[1757028305700,1.26,4345.8,4345.7,3.9742]
[1757028306897,1.26,4345.8,4345.7,0.1152]
[1757028307098,3.68707229,4345.8,4345.7,3.859]
[1757028308302,1.386,4345.8,4345.4,0.1152]
[1757028308531,0.4384,4345.7,4345.5,3.859]
[1757028308745,2.3011782,4345.6,4345.5,3.859]
[1757028308905,3.6427782,4345.6,4345.5,3.859]
[1757028309630,4.4347782,4345.6,4345.5,3.859]
[1757028310534,2.30134691,4345.3,4345.0,1.696]
[1757028310732,0.9106,4345.5,4345.1,3.859]
[1757028310946,0.3158,4345.2,4345.1,3.859]
[1757028312509,0.9072,4345.6,4345.1,3.859]
[1757028312510,0.4307,4345.6,4345.1,3.859]
[1757028312826,0.3158,4345.2,4345.1,3.9742]
[1757028313307,0.026,4345.8,4345.1,13.66791153]
[1757028313631,0.026,4345.8,4345.1,12.87074249]
[1757028314240,2.32711816,4345.8,4345.1,10.11231177]
[1757028314522,0.4307,4345.7,4345.1,10.11231177]
[1757028314840,0.3158,4345.2,4345.1,9.81461177]
[1757028315009,0.4799,4345.7,4345.1,12.41374189]
[1757028315215,0.4567,4345.8,4345.1,10.11231177]
[1757028316138,0.4567,4345.8,4345.1,10.56931177]
[1757028316318,0.026,4345.8,4345.2,0.4609]
[1757028316515,0.026,4345.8,4345.7,0.2977]
[1757028316715,0.026,4345.8,4345.7,4.1567]
[1757028317120,0.026,4345.8,4345.7,3.859]
[1757028317440,3.07357229,4345.8,4345.7,3.859]
[1757028317743,3.55347229,4345.8,4345.7,3.859]
[1757028318414,1.2524,4345.8,4345.7,3.859]
[1757028318615,0.7725,4345.8,4345.7,3.859]
[1757028319115,0.026,4345.8,4345.7,4.1567]
[1757028319321,0.026,4345.8,4345.7,4.45691417]
[1757028319747,0.026,4345.8,4345.7,4.15921417]
[1757028319913,0.3418,4345.8,4345.7,3.859]
[1757028330054,0.026,4345.8,4345.7,4.1567]
[1757028330442,0.026,4345.8,4345.7,7.49092525]
[1757028332462,0.026,4345.8,4345.7,5.1898]
[1757028332664,0.026,4345.8,4345.7,7.49092525]
[1757028333030,0.026,4345.8,4345.7,9.28528656]
[1757028333230,0.026,4345.8,4345.7,10.98128656]
[1757028335548,0.026,4345.8,4345.7,16.36469833]
[1757028335737,0.026,4345.8,4345.7,16.82169833]
[1757028337066,0.026,4345.8,4345.7,4.33396131]
[1757028337353,0.026,4345.8,4345.7,8.19096131]
[1757028337756,0.026,4345.8,4345.7,7.76026131]
[1757028339029,0.026,4345.8,4345.7,10.06138656]
[1757028339742,0.026,4345.8,4345.7,7.76026131]
[1757028339955,0.026,4345.8,4345.7,10.06138656]
[1757028340358,0.026,4345.8,4345.7,11.00738656]
[1757028343757,0.026,4345.8,4345.7,7.15038656]
[1757028343948,0.026,4345.8,4345.7,7.76026131]
[1757028344767,0.7582,4345.8,4345.7,7.46256131]
[1757028344932,3.55147229,4345.8,4345.7,1.696]
[1757028345335,3.55147229,4345.8,4345.7,5.552]
[1757028346252,0.7582,4345.8,4345.7,5.552]
[1757028346436,3.55147229,4345.8,4345.7,5.552]
[1757028347858,3.55147229,4345.8,4345.7,1.696]
[1757028348064,3.55147229,4345.8,4345.7,5.552]
[1757028354369,3.05927229,4345.8,4345.7,5.552]
[1757028354568,0.3175,4345.8,4345.7,5.552]
[1757028354880,0.026,4345.8,4345.7,5.8459]
[1757028355285,0.026,4345.8,4345.7,6.3373]
[1757028355453,0.026,4345.8,4345.7,6.7919]
[1757028355982,0.026,4345.8,4345.7,13.32302177]
[1757028356189,0.026,4345.8,4345.7,13.43822177]
[1757028356363,0.026,4345.8,4345.7,15.73934702]
[1757028361272,0.026,4345.8,4345.7,13.43822177]
[1757028361589,0.026,4345.8,4345.7,14.86112726]
[1757028367192,0.026,4345.8,4345.7,17.17212725]
[1757028367987,0.026,4345.8,4345.7,13.925002]
[1757028368486,0.026,4345.8,4345.7,16.22612725]
[1757028369871,0.026,4345.8,4345.7,16.71412725]
[1757028370485,0.026,4345.8,4345.7,17.18202725]
[1757028376001,0.026,4345.8,4345.7,15.93222725]
[1757028376168,0.3143,4345.8,4345.7,15.93222725]
[1757028376369,0.3143,4345.8,4345.7,9.775102]
[1757028376589,0.3143,4345.8,4345.7,13.629102]
[1757028377784,0.3143,4345.8,4345.7,13.932202]
[1757028377785,0.026,4345.8,4345.7,13.932202]
[1757028378102,0.026,4345.8,4345.7,16.23332725]
[1757028379878,0.026,4345.8,4345.7,17.18922725]
[1757028380476,0.026,4345.8,4345.7,16.72132725]
[1757028380798,0.026,4345.8,4345.7,13.92232726]
[1757028381900,0.026,4345.8,4345.7,14.87822726]
[1757028382680,0.026,4345.8,4345.7,14.41032726]
[1757028383100,0.026,4345.8,4345.7,13.92232726]
[1757028383910,0.026,4345.8,4345.7,11.62120201]
[1757028384493,0.026,4345.8,4345.7,13.92232726]
[1757028385407,0.026,4345.8,4345.7,14.41032726]
[1757028385582,0.026,4345.8,4345.7,14.87822726]
[1757028390093,0.026,4345.8,4345.7,14.41032726]
[1757028390293,0.026,4345.8,4345.7,13.92232726]
[1757028392315,0.026,4345.8,4345.7,14.41032726]
[1757028392707,0.026,4345.8,4345.7,13.92232726]
[1757028396712,0.3143,4345.8,4345.7,15.93022725]
[1757028397896,0.026,4345.8,4345.7,16.70122725]
[1757028398098,0.026,4345.8,4345.7,16.23332725]
[1757028399513,0.026,4345.8,4345.7,16.68362725]
[1757028399695,0.026,4345.8,4345.7,17.14022725]
[1757028400092,0.026,4345.8,4345.7,13.629102]
[1757028400626,0.026,4345.8,4345.7,15.93022725]
[1757028400992,0.3178,4345.8,4345.7,15.93022725]
[1757028401196,0.7765,4345.8,4345.7,15.93022725]
[1757028402030,0.3178,4345.8,4345.7,15.93022725]
[1757028403635,0.3178,4345.8,4345.7,13.61922726]
[1757028403927,0.026,4345.8,4345.7,13.61922726]
[1757028404516,0.026,4345.8,4345.7,13.93002726]
[1757028405102,0.026,4345.8,4345.7,14.38032726]
[1757028405612,0.026,4345.8,4345.7,13.93002726]
[1757028406507,0.026,4345.8,4345.7,13.61922726]
[1757028406923,0.3178,4345.8,4345.7,13.61922726]
[1757028408529,0.026,4345.8,4345.7,13.93002726]
[1757028408922,0.026,4345.8,4345.7,14.83692726]
[1757028409233,0.026,4345.8,4345.7,19.79911927]
[1757028409435,0.026,4345.8,4345.7,20.49080258]
[1757028410714,0.026,4345.8,4345.7,23.49080258]
[1757028412050,1e-08,4345.8,4345.7,23.49080258]
[1757028412907,1e-08,4345.8,4345.7,14.21801057]
[1757028413115,1e-08,4345.8,4345.7,18.52561057]
[1757028414631,0.29180001,4345.8,4345.7,5.49471856]
[1757028414835,0.75050001,4345.8,4345.7,13.61622726]
[1757028415041,0.29180001,4345.8,4345.7,13.61622726]
[1757028416834,0.75050001,4345.8,4345.7,13.61622726]
[1757028418246,1.21730001,4345.8,4345.7,8.65403525]
[1757028418472,1.21730001,4345.8,4345.7,13.61622726]
[1757028418746,0.75050001,4345.8,4345.7,13.61622726]
[1757028421348,0.75050001,4345.8,4345.7,11.31510201]
[1757028421549,1e-08,4345.8,4345.7,14.37732726]